Cogmind - Beta 16 @@@ ROGUE MODE // 2025.11.18 @ 01:57:46 Player: guru-sr Result: Self-destructed Performance ------------- Evolutions (2) 1000 Regions Visited (3) 600 Robots Destroyed (42) 210 Value Destroyed (1137) 1137 Prototype IDs (14) 280 Alien Tech Used (0) 0 Bonus (-174) -174 TOTAL SCORE: 3053 Bonus ------- Friendly Fire -174 Cogmind --------- Core Integrity 457/550 Matter 286/300 Energy 265/265 System Corruption 0% Temperature Cool (0) Movement Treading (240) Ox1 Location -8/Materials Parts ------- > --- POWER (1) -------- Improved Ion Engine > --- PROPULSION (3) --- Light Treads Light Treads Light Treads > --- UTILITY (4) ------ Improved Heat Sink Huge Storage Unit Targeting Computer Core Shielding > --- WEAPON (3) ------- Improved Medium Laser Beam Cannon Gauss Rifle > --- INVENTORY (25) --- Improved Ion Engine Heavy Ion Engine Light Nuclear Core Light Treads Improved Carbon-fiber Leg Improved Heat Sink High-capacity Matter Pod (200) Trap Scanner Advanced Visual Processing Unit Improved Terrain Scanner Seismic Detector Armor Integrity Analyzer Armor Integrity Analyzer Power Shielding Light Armor Plating Light Armor Plating Hacking Suite Hacking Suite High-powered Tractor Beam Mini Grenade Launcher Subdweller Shrapnel Launcher Datajack Mining Laser Multitool Heavy Mace Peak State ------------ > --- POWER ------------ Light Nuclear Core > --- PROPULSION ------- Improved Carbon-fiber Leg Cargo Legs > --- UTILITY ---------- Heat Sink Huge Storage Unit Trap Scanner Targeting Computer Scrap Shield > --- WEAPON ----------- Beam Cannon Beam Cannon Gauss Rifle > --- INVENTORY -------- Ion Engine Heavy Ion Engine Heavy Ion Engine Light Treads Light Treads Light Treads High-capacity Matter Pod Advanced Visual Processing Unit Improved Terrain Scanner Seismic Detector Armor Integrity Analyzer Armor Integrity Analyzer Core Shielding Power Shielding Light Armor Plating Hacking Suite Hacking Suite Mini Grenade Launcher Subdweller Shrapnel Launcher Datajack Mining Laser Multitool Heavy Mace [Rating: 43] Favorites ----------- Power Ion Engine Engine Ion Engine Power Core Light Nuclear Core Propulsion Light Treads Treads Light Treads Leg Cargo Legs Wheel Compact Wheel Utility Large Storage Unit Device Heat Sink Storage Large Storage Unit Processor Targeting Computer Protection Core Shielding Weapon Beam Cannon Energy Gun Medium Laser Energy Cannon Beam Cannon Ballistic Gun Gauss Rifle Launcher Subdweller Shrapnel Launcher Special Weapon Mining Laser Build | -11 -10 -10 -8 ------- Run | Yrd Mat Sub Mat Slots Evolved 4 | . . . 4 Power . | . . . . Propulsion 1 | . . . 1 Utility 2 | . . . 2 Weapon 1 | . . . 1 Parts Attached 33 | 6 10 5 12 Power 7 | 1 2 1 3 Engine 6 | 1 2 . 3 Core 1 | . . 1 . Reactor . | . . . . Propulsion 8 | 2 1 2 3 Treads 4 | 1 . 1 2 Leg 2 | . . 1 1 Wheel 2 | 1 1 . . Hover . | . . . . Flight . | . . . . Utility 9 | 1 3 1 4 Device 3 | . 1 . 2 Storage 3 | 1 1 . 1 Processor 1 | . . . 1 Hackware . | . . . . Protection 2 | . 1 1 . Artifact . | . . . . Weapon 9 | 2 4 1 2 Energy Gun 4 | 2 1 . 1 Energy Cannon 2 | . 2 . . Ballistic Gun 1 | . . . 1 Ballistic Cannon . | . . . . Launcher 1 | . . 1 . Special Weapon 1 | . 1 . . Impact Weapon . | . . . . Slashing Weapon . | . . . . Piercing Weapon . | . . . . Special Melee Weapon . | . . . . Unidentified Prototypes 2 | . . . 2 Parts Lost 1 | . . . 1 Power . | . . . . Propulsion . | . . . . Utility . | . . . . Weapon 1 | . . . 1 Highest Loss Streak 1 | . . . 1 To Critical Strikes . | . . . . Average Backups 14 | 2 13 14 19 Power 1 | . 1 . 1 Propulsion 2 | 1 2 1 1 Utility 7 | . 5 8 10 Weapon 2 | . 2 2 3 Tool/Special . | . . . . Unused Backups 25 | 1 3 1 20 Power 2 | . . . 2 Propulsion 4 | 1 2 . 1 Utility 13 | . 1 . 12 Weapon 4 | . . 1 3 Tool/Special 2 | . . . 2 Average Slot Usage (%) 92 | . 96 92 85 Engine 10 | . 14 10 4 Core 2 | . . 3 3 Treads 12 | . 14 10 14 Leg 2 | . . 3 4 Wheel 9 | . 14 10 . Device 9 | . 5 13 11 Storage 12 | . 14 13 8 Processor 1 | . . . 7 Protection 4 | . 5 2 7 Energy Gun 5 | . 16 . . Energy Cannon 18 | . 9 25 16 Ballistic Gun 1 | . . . 4 Special Weapon 1 | . 2 . . Peak Build Rating 43 | 6 10 29 43 Average Rating 14 | 5 8 14 26 On Entrance 11 | . 6 9 29 Avg Prop Armor Cover (%) 11 | 15 13 10 . Naked Turns . | . . . . Heaviest Build 113 | 12 32 50 113 Greatest Support 73 | 16 16 55 73 Greatest Overweight (x) 2 | . 1 1 2 Average Overweight (x) . | . . . 1 Largest Inventory Capacity 25 | 8 15 15 25 Average Capacity 16 | 6 14 15 24 Most Carried 25 | 6 15 15 25 Average Carried 15 | 2 13 14 19 Final Capacity 25 | 8 15 15 25 Final Carried 25 | 6 15 15 25 Class Distribution -------------------- 86% | Mutant 10% | Gunner Dominant Class ---------------- Mutant | -10/Materials Mutant | -10/Subcaves Gunner | -8/Materials Resources | -11 -10 -10 -8 ----------- Run | Yrd Mat Sub Mat Matter Collected 1150 | 260 390 120 380 Remotely . | . . . . Salvage Created 1647 | 121 462 130 934 Parts 79 | 6 17 9 47 Haulers Intercepted 4 | . 2 . 2 Recyclers Shooed 5 | . 4 . 1 Parts Field Recycled . | . . . . Retrieved Matter . | . . . . Parts Self-Destructed 6 | . . 6 . Prevented . | . . . . Parts Restored . | . . . . Kills | -11 -10 -10 -8 ------- Run | Yrd Mat Sub Mat Combat Hostiles Destroyed 27 | . 6 4 17 Guns 7 | . 3 . 4 Cannons 13 | . 2 2 9 AOE 5 | . . 2 3 Classes Destroyed 14 | 2 3 3 6 Worker 3 | . . . 3 Builder 1 | . . . 1 Tunneler 1 | 1 . . . Hauler 4 | . 2 . 2 Recycler 5 | 1 1 . 3 Operator 1 | . 1 . . Swarmer 5 | . . . 5 Grunt 12 | . 6 . 6 Duelist 1 | . . . 1 Sentry 3 | . . . 3 Specialist 2 | . . . 2 Artisan 1 | . . 1 . Subdweller 4 | . . 4 . Scientist 1 | . . 1 . Best Kill Streak 16 | 1 2 3 16 Combat Bots Only 8 | . 2 3 8 Max Kills in Single Turn 3 | 1 1 1 3 Gunslinging . | . . . . Exploded 3 | . . 1 3 Melee . | . . . . Uniques/NPCs Destroyed . | . . . . Combat | -11 -10 -10 -8 -------- Run | Yrd Mat Sub Mat Hostile Shots Fired 110 | . 23 6 81 Missed 36 | . 6 4 26 Hits 74 | . 17 2 55 Melee 1 | . . . 1 Projectile 73 | . 17 2 54 Critical Strikes 1 | . . . 1 Damage Taken 1035 | . 257 91 687 Core 157 | . 44 20 93 Absorbed by Shields . | . . . . Redirected to Shielding 14 | . 5 . 9 Core Remaining (%) 87 | 100 . 74 . Volleys Fired 112 | 2 49 24 37 Largest 3 | 2 2 2 3 Hottest 148 | 100 125 120 148 Shots Fired 220 | 4 86 41 89 Gun 82 | 4 56 . 22 Cannon 110 | . 18 31 61 Launcher 7 | . . 3 4 Special 21 | . 12 7 2 Kinetic 29 | . . 3 26 Thermal 191 | 4 86 38 63 Explosive . | . . . . Electromagnetic . | . . . . Robot Hit Streak 12 | 4 11 9 12 Robot Miss Streak 5 | . 4 2 5 Penetration Max 1 | . . . 1 Secondary Targets . | . . . . Shots Hit Robots 141 | 4 54 25 58 Core Hits 68 | 3 17 11 37 Critical Kills . | . . . . Critical Parts Destroyed . | . . . . Critical Strikes 9 | 1 8 . . Burn 9 | 1 8 . . Melee Attacks . | . . . . Impact . | . . . . Slashing . | . . . . Piercing . | . . . . Sneak Attacks . | . . . . Combat Hostiles . | . . . . Follow-up Attacks . | . . . . Damage Inflicted 3607 | 49 786 843 1929 Guns 973 | 49 589 . 335 Cannons 1504 | . 197 418 889 Explosions 1130 | . . 425 705 Melee . | . . . . Ramming . | . . . . Kinetic 1465 | . . 425 1040 Thermal 2142 | 49 786 418 889 Explosive . | . . . . Electromagnetic . | . . . . Impact . | . . . . Slashing . | . . . . Piercing . | . . . . Highest Corruption . | . . . . Average Corruption . | . . . . Corruption Purged . | . . . . Corruption Blocked . | . . . . Overload Shots . | . . . . Overflow Damage 20 | . . . 20 Projectiles . | . . . . Explosions 20 | . . . 20 Melee . | . . . . Knockbacks . | . . . . Impact . | . . . . Kinetic . | . . . . Secondary . | . . . . Self-Inflicted Damage 8 | . . 8 . Shots 1 | . . 1 . Rammed . | . . . . Targets Rammed . | . . . . Kicked . | . . . . Crushed . | . . . . Highest Temperature 333 | 39 333 . 288 Average Temperature 86 | 24 97 . 74 Received Heat Transfer 360 | . 144 . 216 Siege Activations . | . . . . Martial Activations . | . . . . Shielding Activations . | . . . . Robots Disrupted . | . . . . Combat Hostiles . | . . . . Robots Corrupted . | . . . . Combat Hostiles . | . . . . Parts Fried . | . . . . Impact Corruptions . | . . . . Robots Melted 3 | . 2 . 1 Combat Hostiles 2 | . 1 . 1 Parts Melted 13 | 1 7 . 5 Heat Transferred 5624 | 222 2664 888 1850 Parts Sabotaged . | . . . . Parts Stolen . | . . . . Parts Stripped . | . . . . Power Chain Reactions . | . . . . Alert | -11 -10 -10 -8 ------- Run | Yrd Mat Sub Mat Maximum Alert Level 1 | . . . 1 Low Security (%) 89 | 100 100 . 72 Level 1 10 | . . . 27 Level 2 . | . . . . Level 3 . | . . . . Level 4 . | . . . . Level 5 . | . . . . High Security . | . . . . Max Security . | . . . . Peak Influence 344 | 5 72 . 344 Initial . | . . . . Average 58 | 1 19 . 128 Influence Increases 861 | 10 291 . 560 Destroy 0b10 Robot/C 460 | . 120 . 340 Destroy 0b10 Robot/NC 70 | 10 15 . 45 Destroy Leader 118 | . 34 . 84 Successful Hack 35 | . 35 . . Select Force Hacks 30 | . 30 . . Disable Machine 60 | . 30 . 30 Destroy Structure 43 | . 12 . 31 Lose Combat Pursuer 45 | . 15 . 30 Influence Decreases 517 | 10 291 . 216 Time Decay 497 | 10 281 . 206 Lost Part 10 | . . . 10 Lost Ally 10 | . 10 . . Squads Dispatched 6 | . 1 . 5 Investigation 1 | . 1 . . Extermination . | . . . . Reinforcement 2 | . . . 2 Assault . | . . . . Garrison 3 | . . . 3 Intercept . | . . . . Searches Triggered . | . . . . Construction Impeded . | . . . . Haulers Reinforced . | . . . . Active Scanning Responses . | . . . . Cargo Convoy Interrupts . | . . . . Stealth | -11 -10 -10 -8 --------- Run | Yrd Mat Sub Mat Distress Signals 3 | . 1 . 2 Communications Jammed . | . . . . Distress Signals . | . . . . Times Spotted 46 | . 16 4 26 Peak Tracking Total 10 | . 5 2 10 Tactical Retreats 3 | . 1 1 1 Traps | -11 -10 -10 -8 ------- Run | Yrd Mat Sub Mat Traps Triggered 1 | . . 1 . Indirectly . | . . . . Trap Hack Attempts . | . . . . Triggered . | . . . . Disarmed . | . . . . Reprogrammed . | . . . . Reused 1 | . . 1 . Traps Extracted . | . . . . Installed 1 | . . 1 . Triggered . | . . . . Most Traps Carried 1 | . . 1 . Machines | -11 -10 -10 -8 ---------- Run | Yrd Mat Sub Mat Machines Disabled 4 | . 2 . 2 Max in Single Turn 1 | . 1 . 1 Machines Repaired . | . . . . Machines Dismantled . | . . . . Machines Sabotaged . | . . . . Overloaded Fab Kills . | . . . . Hacking | -11 -10 -10 -8 --------- Run | Yrd Mat Sub Mat Machines Accessed 11 | . 7 4 . Terminals 6 | . 6 . . Fabricators . | . . . . Repair Stations . | . . . . Recycling Units 1 | . 1 . . Scanalyzers . | . . . . Garrison Access . | . . . . Total Hacks 41 | . 25 16 . Successful 31 | . 15 16 . Failed 9 | . 9 . . Catastrophic . | . . . . Database Lockouts 1 | . 1 . . Manual 20 | . 20 . . Terminals 22 | . 22 . . Fabricators . | . . . . Repair Stations . | . . . . Recycling Units 3 | . 3 . . Scanalyzers . | . . . . Garrison Access . | . . . . Terminal Hacks 21 | . 5 16 . Record 13 | . . 13 . Robot Analysis 3 | . 3 . . Open Door 1 | . . 1 . Terminal Index 1 | . 1 . . Registered Components 1 | . 1 . . Proto ID Catalog 1 | . . 1 . Release Object 1 | . . 1 . Fabricator Hacks . | . . . . Repair Station Hacks . | . . . . Recycling Unit Hacks 2 | . 2 . . Report Inventory 1 | . 1 . . Retrieve Components 1 | . 1 . . Scanalyzer . | . . . . Garrison Access Hacks . | . . . . Unauthorized Hacks 8 | . 8 . . Terminals 7 | . 7 . . Assimilate 2 | . 2 . . Botnet 2 | . 2 . . Operators 1 | . 1 . . Skim 2 | . 2 . . Fabricators . | . . . . Repair Stations . | . . . . Recycling Units 1 | . 1 . . Tunnel 1 | . 1 . . Scanalyzers . | . . . . Garrison Access . | . . . . Data Cores Recovered . | . . . . Used . | . . . . Hacking Detections 7 | . 7 . . Full Trace Events 1 | . 1 . . Feedback Events . | . . . . Feedback Blocked . | . . . . Robot Schematics Acquired . | . . . . Robots Built . | . . . . Authchips . | . . . . Time . | . . . . Total Robot Build Rating . | . . . . Part Schematics Acquired . | . . . . Parts Built . | . . . . Authchips . | . . . . Time . | . . . . Total Part Build Rating . | . . . . Part Studies Acquired . | . . . . Parts Repaired . | . . . . Time . | . . . . Parts Recycled . | . . . . Recycled Matter . | . . . . Retrieved Matter . | . . . . Retrieved Components 9 | . 9 . . Parts Scanalyzed . | . . . . Part Schematics Acquired . | . . . . Parts Damaged . | . . . . Bothacking | -11 -10 -10 -8 ------------ Run | Yrd Mat Sub Mat Used RIF Installer . | . . . . Robots Hacked . | . . . . Non-combat . | . . . . Combat . | . . . . Robot Hacks Applied . | . . . . Relay Couplers Released . | . . . . Fabnet Peak Effective % . | . . . . Robots Rewired . | . . . . Allies Hacked . | . . . . Hacks Repelled . | . . . . Allies | -11 -10 -10 -8 -------- Run | Yrd Mat Sub Mat Total Allies 2 | . 2 . . Largest Group 1 | . 1 . . Highest-Rated Group 10 | . 10 . . Highest-Rated Ally 10 | . 10 . . Total Orders 1 | . 1 . . STAY 1 | . 1 . . Ally Attacks . | . . . . Total Damage . | . . . . Kills . | . . . . Allies Corrupted . | . . . . Allies Melted . | . . . . Intel | -11 -10 -10 -8 ------- Run | Yrd Mat Sub Mat Active Infowar (turns) 258 | . . . 258 Traps 258 | . . . 258 Robot Analysis Total 3 | . 3 . . Derelict Logs Recovered . | . . . . Drone Launches . | . . . . Drone Recoveries . | . . . . Exploration | -11 -10 -10 -8 ------------- Run | Yrd Mat Sub Mat Turns Passed 3151 | 82 1046 1369 654 Spaces Moved 1860 | 57 678 920 205 Core 1 | 1 . . . Treads 222 | . . 120 102 Legs 395 | . . 292 103 Wheels 1242 | 56 678 508 . Hover . | . . . . Flight . | . . . . Fastest Speed 50 | 50 100 115 130 Average Speed 137 | 99 114 136 230 Slowest Speed 270 | 100 115 240 270 Overloaded Moves . | . . . . Propulsion Burnouts . | . . . . Robots Hopped . | . . . . Potential Cave-ins . | . . . . Cave-ins Triggered . | . . . . Exploration Rate (%) 38 | 4 98 33 18 Regions Visited 3 Branch Regions 1 Pre-discovered Areas 2 | . 1 1 . Known Exits Taken . | . . . . Unknown Exits Taken 3 | 1 1 1 . Scrap Searched . | . . . . Spaces Dug 13 | . 11 . 2 Terrain Destroyed 100 | . 12 47 41 Melee . | . . . . Projectile 15 | . 12 . 3 AOE 85 | . . 47 38 Terrain Rammed . | . . . . Walls Destroyed . | . . . . Machines Disabled . | . . . . Actions | -11 -10 -10 -8 --------- Run | Yrd Mat Sub Mat Total 2192 | 76 831 977 308 Wait 93 | 4 59 8 22 Move 1857 | 56 677 919 205 Hop . | . . . . Pick Up 48 | 7 17 5 19 Fast Attach 15 | 6 3 2 4 Attach 7 | . 1 . 6 Detach 2 | . . . 2 Swap 32 | . 15 11 6 Drop 25 | 1 10 7 7 Fire 112 | 2 49 24 37 Melee . | . . . . Ram . | . . . . Kick . | . . . . Crush . | . . . . Escape Stasis . | . . . . Rewire . | . . . . Trap 1 | . . 1 . Miscellaneous . | . . . . Route ------- -11/Scrapyard -10/Materials (discovered 5 exits: [*Mat x3] / [*Min] / *Sub) -10/Subcaves -8/Materials (discovered 1 exit: [*Sto]) History --------- Turn | Location | Event 15 | -11/Scrapyard | Discovered new exit (range 15) 83 | -11/Scrapyard | Entered Materials 305 | -10/Materials | Build established: Mutant 393 | -10/Materials | Discovered new exit (range 9) 506 | -10/Materials | Discovered new exit (range 6) 540 | -10/Materials | Central database locked down 820 | -10/Materials | Discovered new exit (range 11) 946 | -10/Materials | Discovered new exit (range 15) 1121 | -10/Materials | Discovered new exit (range 8) 1129 | -10/Materials | Entered Subcaves 1130 | -10/Subcaves | Approached by a straggling Scientist 1228 | -10/Subcaves | Discovered new exit (range 13) 1261 | -10/Subcaves | Visited Clippyterm 1265 | -10/Subcaves | Learned location of Extension (-5) 1265 | -10/Subcaves | Learned Research machine intel 1283 | -10/Subcaves | A swath of the cavern ceiling suddenly collapsed 1491 | -10/Subcaves | Visited 4L-MR0's lab 2057 | -10/Subcaves | A Subdweller sparked back to life 2057 | -10/Subcaves | A Subdweller sparked back to life 2057 | -10/Subcaves | A Subdweller sparked back to life 2104 | -10/Subcaves | Found Cargo Legs 2106 | -10/Subcaves | Attached Cargo Legs, gained temporary slots: Utility x2 2498 | -10/Subcaves | Entered Materials 2498 | -8/Materials | Evolved 4 slots: Propulsion x1, Utility x2, Weapon x1 2617 | -8/Materials | Discovered new exit (range 8) 2918 | -8/Materials | Garrison activated, responded to threat 3031 | -8/Materials | Destroyed 8 combat bots 3152 | -8/Materials | Self-destructed Last Messages --------------- 03035_ Dropped Ion Engine. 03050_ Y-45 Defender destroyed. 03057_ U-05 Engineer builds a Wall. 03070_ Acquired Imp. Heat Sink. 03075_ Acquired 24 matter. 03094_ Acquired Hpw. Tractor Beam. 03112_ Dropped Heat Sink. 03112_ Acquired Lgt. Armor Plating. 03137_ Slug penetrates Wall. 03137_ A-02 Transporter destroyed. 03139_ Beam Cannon destroyed. 03140_ S-10 Pest destroyed. 03140_ Slug penetrates Door. 03143_ W-25 Informer sends out distress signal. 03145_ K-01 Serf collects debris. 03150_ Acquired Prototype Energy Gun. 03150_ Identified Imp. Medium Laser. 03151_ ALERT: Hostiles spotted, dispatching reinforcements to Terminal M009. 03152_ K-01 Serf collects debris. Map ----- +----------------------------------------------------+ | ???????????????????????????????????????# #??? | | ???????????????????????????????????????# """ #??? | | ???????????????????????????????????????# """ #??? | | ???????????????????????????????????????# """ !#??? | | ???????????????????????????????????????# #??? | | ???????????????????????????????????????####+###??? | | ??????????????????????????????????????????# #????? | | ???????????????????????#??????????????????# ###### | | ???????????????????????# ??################ ## # | | ???????????????????????# ??# * + %< | | ??????????? ############ ??#=""" ########## # | | ?????????? "% ###*""" #????????## ## | | ?????????? % #[!""= #?????????# #? | | ?????????? [ k%+%=%!= #??????####%## | | ?????????? #="!" #?????##! | | ??????????? ###/#######* #!"" #?????#! | | ???????????????????????# %#=""! #?????#! | | ???????????????????????#u #%[ *! #?????#! ! | | ???????????????????????# ####+#####?????#! %! | | ???????????????????????# #??#%#?????????##! | | ???????????????????????# #??#*#??????????#### | | ???????????????????????# ####+############ # | | ???????????????????????# # # !! # | | ???????????????????????# # # """ * | | ???????????????????????#[ # """"" # """ "T | | ???????????????????????#=@ ;%""""" #/ """ "" | | ???????????????????????#w=k# """"" # # | | ???????????????????????#[[ #################### | | ???????????????????????#! #??????????????????# | | ???????????????????????# #??????????????????+ | | ???????????????????????# #??????????????????# | | ???????????????????????# #??????????????????#### | | ???????????????????????+ +?????????????????????? | | ???????????????????????# #?????????????????????? | | ???????????????????????#wY #?????????????????????? | | ???????????????????????# #?????????????????????? | | ??????????????????????? ?????????????????????? | | ??????????????????????? ?????????????????????? | | ??????????????????????? ?????????????????????? | | ??????????????????????? [ ?????????????????????? | | ??????????????????????? ?????????????????????? | | ?????????????????????????????????????????????????? | | ?????????????????????????????????????????????????? | | ?????????????????????????????????????????????????? | | ?????????????????????????????????????????????????? | | ?????????????????????????????????????????????????? | | ?????????????????????????????????????????????????? | | ?????????????????????????????????????????????????? | | ?????????????????????????????????????????????????? | | ?????????????????????????????????????????????????? | +----------------------------------------------------+ Best States ------------- Heat Dissipation 45 Energy Generation 14 Energy Capacity 265 Matter Stores 300 Matter Capacity 300 Sight Range 16 Terrain Scan Density 10 Armor Coverage 800 Core Shielding 20 Evasion (%) 55 Targeting Accuracy 5 Recoil Reduction 3 Item Schematics ----------------- None Robot Schematics ------------------ None Fabricated ------------ Nothing Repaired ---------- Nothing Studied --------- None Alien Tech Used ----------------- None Achievements -------------- None Challenges ------------ None Game ------ Seed MagneticMetaShearcannon Manual? 0 Play Time 00:41:31 Cumulative 37.8 hours Start 2025.11.18 @ 01:13:33 End 2025.11.18 @ 01:57:46 Sessions 1 Manual Loads 0 Difficulty Rogue Special Mode None Game No. 19 Rogue 19 Adventurer 0 Explorer 0 Win Type - Total 1 Types 1/0/0/0/0/0/0/0/0/0 Lore% 21 Gallery% 26 Achievement% 33 Wizard Run 0 Options --------- Layout 0 ASCII 0 Keyboard 0 Movement Mouse Keybinds 0 Fullscreen 1 Font 18/SmallcapsGlow Map View 76x50 Zoom Use 0% Tactical HUD 1 Map Filters NONE Filters NONE Steam 1 RUN: 27eadbd4-136e-4152-baed-371eae499e53